[Event "*** Titled Tuesday Blitz"]
[Site "Chess.com"]
[Date "2020.12.01"]
[Round "11"]
[White "CalinGheorghiu"]
[Black "Mikhail_Golubev"]
[Result "0-1"]
[WhiteElo "2412"]
[BlackElo "2575"]
[TimeControl "180+1"]
[EndTime "12:04:52 PST"]
[Termination "Mikhail_Golubev won by checkmate"]

1. e4 {[%clk 0:03:00.9]} 1... c5 {[%clk 0:02:59.3]} 2. Nc3 {[%clk 0:02:55.2]}
2... g6 {[%clk 0:02:57]} 3. f4 {[%clk 0:02:52.6]} 3... Bg7 {[%clk 0:02:56.7]} 4.
Nf3 {[%clk 0:02:53.2]} 4... e6 {[%clk 0:02:55.8]} 5. d4 {[%clk 0:02:48.2]} 5...
cxd4 {[%clk 0:02:55.1]} 6. Nxd4 {[%clk 0:02:48.7]} 6... Ne7 {[%clk 0:02:55]} 7.
Ndb5 {[%clk 0:02:42.7]} 7... O-O {[%clk 0:02:54.6]} 8. Nd6 {[%clk 0:02:42.6]}
8... Nbc6 {[%clk 0:02:45.7]} 9. Be2 {[%clk 0:02:40.3]} 9... Qb6 {[%clk
0:02:42.5]} 10. e5 {[%clk 0:02:36.9]} 10... f6 {[%clk 0:02:36.3]} 11. exf6
{[%clk 0:02:24.9]} 11... Bxf6 {[%clk 0:02:35.4]} 12. Nce4 {[%clk 0:02:13.3]}
12... Bg7 {[%clk 0:02:34.7]} 13. c3 {[%clk 0:02:10.5]} 13... Nd5 {[%clk
0:02:22.9]} 14. g3 {[%clk 0:01:55.7]} 14... Nce7 {[%clk 0:02:21.5]} 15. Qd3
{[%clk 0:01:49.8]} 15... Nf5 {[%clk 0:02:19.1]} 16. Nxf5 {[%clk 0:01:44.7]}
16... gxf5 {[%clk 0:02:16.4]} 17. Ng5 {[%clk 0:01:44.4]} 17... Qc5 {[%clk
0:02:06.2]} 18. Bd2 {[%clk 0:01:37.4]} 18... b5 {[%clk 0:01:53.9]} 19. Qxb5
{[%clk 0:01:16.8]} 19... Qxb5 {[%clk 0:01:53.3]} 20. Bxb5 {[%clk 0:01:16.7]}
20... Rb8 {[%clk 0:01:53.9]} 21. c4 {[%clk 0:00:58]} 21... Nc7 {[%clk
0:01:53.3]} 22. Bb4 {[%clk 0:00:54.5]} 22... Nxb5 {[%clk 0:01:42.2]} 23. Bxf8
{[%clk 0:00:52.2]} 23... Bxb2 {[%clk 0:01:39.6]} 24. cxb5 {[%clk 0:00:38.4]}
24... Bxa1 {[%clk 0:01:36]} 25. Bd6 {[%clk 0:00:36.2]} 25... Rxb5 {[%clk
0:01:34]} 26. O-O {[%clk 0:00:36.4]} 26... Bd4+ {[%clk 0:01:32]} 27. Kg2 {[%clk
0:00:36.3]} 27... Bb7+ {[%clk 0:01:27.7]} 28. Kh3 {[%clk 0:00:36]} 28... Rb2
{[%clk 0:01:24]} 29. Rc1 {[%clk 0:00:30.7]} 29... h6 {[%clk 0:01:11.8]} 30. Rc7
{[%clk 0:00:27.6]} 30... hxg5 {[%clk 0:01:07.9]} 31. fxg5 {[%clk 0:00:26.2]}
31... Bg2+ {[%clk 0:01:00]} 32. Kh4 {[%clk 0:00:26.1]} 32... Bc6 {[%clk
0:01:00.6]} 33. g6 {[%clk 0:00:23.1]} 33... Rxh2+ {[%clk 0:00:55.1]} 34. Kg5
{[%clk 0:00:23.1]} 34... Kg7 {[%clk 0:00:55.1]} 35. Bf4 {[%clk 0:00:11.6]} 35...
Bf6# {[%clk 0:00:54.6]} 0-1

[Event "*** Titled Tuesday Blitz"]
[Site "Chess.com"]
[Date "2020.12.01"]
[Round "11"]
[White "Chesswizard_2007"]
[Black "juancruzarias"]
[Result "0-1"]
[WhiteElo "2660"]
[BlackElo "2525"]
[TimeControl "180+1"]
[EndTime "12:04:56 PST"]
[Termination "juancruzarias won on time"]

1. e4 {[%clk 0:03:00.1]} 1... e6 {[%clk 0:03:00.4]} 2. Nc3 {[%clk 0:02:58.2]}
2... d5 {[%clk 0:03:00.8]} 3. d4 {[%clk 0:02:59.1]} 3... Nf6 {[%clk 0:03:00.7]}
4. Bg5 {[%clk 0:02:58.3]} 4... Bb4 {[%clk 0:03:00.7]} 5. e5 {[%clk 0:02:56.5]}
5... h6 {[%clk 0:03:01.1]} 6. Bd2 {[%clk 0:02:54.7]} 6... Bxc3 {[%clk
0:03:01.4]} 7. Bxc3 {[%clk 0:02:51.9]} 7... Ne4 {[%clk 0:03:00.4]} 8. Bd3 {[%clk
0:02:44.1]} 8... Nxc3 {[%clk 0:02:57.8]} 9. bxc3 {[%clk 0:02:45]} 9... c5 {[%clk
0:02:58.6]} 10. Nf3 {[%clk 0:02:44.1]} 10... Qa5 {[%clk 0:02:59.1]} 11. Qd2
{[%clk 0:02:38.8]} 11... Nc6 {[%clk 0:02:59.2]} 12. O-O-O {[%clk 0:02:36.2]}
12... c4 {[%clk 0:02:43.9]} 13. Be2 {[%clk 0:02:30.2]} 13... Qa3+ {[%clk
0:02:33.1]} 14. Kb1 {[%clk 0:02:28]} 14... b5 {[%clk 0:02:32.9]} 15. Ka1 {[%clk
0:02:23.5]} 15... a5 {[%clk 0:02:22.6]} 16. Rb1 {[%clk 0:02:12.9]} 16... b4
{[%clk 0:02:20.2]} 17. Qc1 {[%clk 0:01:16.7]} 17... Qxc3+ {[%clk 0:02:16]} 18.
Qb2 {[%clk 0:01:17.2]} 18... Qxb2+ {[%clk 0:02:11.1]} 19. Kxb2 {[%clk
0:01:18.1]} 19... Bd7 {[%clk 0:02:07.4]} 20. c3 {[%clk 0:01:18.5]} 20... Ke7
{[%clk 0:02:05.7]} 21. Kc2 {[%clk 0:01:15.8]} 21... Rhb8 {[%clk 0:02:05.2]} 22.
h4 {[%clk 0:01:06.6]} 22... Be8 {[%clk 0:02:04.5]} 23. h5 {[%clk 0:01:04.5]}
23... bxc3 {[%clk 0:02:02.2]} 24. Kxc3 {[%clk 0:01:05.3]} 24... Nb4 {[%clk
0:01:55.4]} 25. a3 {[%clk 0:01:03.7]} 25... Nc6 {[%clk 0:01:46.8]} 26. g4 {[%clk
0:00:59]} 26... f6 {[%clk 0:01:44]} 27. exf6+ {[%clk 0:00:55.1]} 27... gxf6
{[%clk 0:01:43.3]} 28. Nh4 {[%clk 0:00:46.9]} 28... Kd6 {[%clk 0:01:39]} 29. f4
{[%clk 0:00:46.4]} 29... Na7 {[%clk 0:01:21.6]} 30. Kd2 {[%clk 0:00:31.1]} 30...
Nb5 {[%clk 0:01:19.1]} 31. Ke3 {[%clk 0:00:20.7]} 31... Nxa3 {[%clk 0:01:14.3]}
32. Rbc1 {[%clk 0:00:20]} 32... Rb2 {[%clk 0:01:10.4]} 33. Ng6 {[%clk
0:00:13.9]} 33... Nc2+ {[%clk 0:01:07.7]} 34. Rxc2 {[%clk 0:00:05.8]} 34... Rxc2
{[%clk 0:01:08.6]} 35. Rb1 {[%clk 0:00:05.2]} 35... Rc3+ {[%clk 0:01:08.6]} 36.
Kf2 {[%clk 0:00:04.8]} 36... Rb3 {[%clk 0:01:09.1]} 37. Ra1 {[%clk 0:00:04]}
37... a4 {[%clk 0:01:08.2]} 38. Bd1 {[%clk 0:00:01.6]} 38... a3 {[%clk
0:01:08.5]} 0-1

[Event "*** Titled Tuesday Blitz"]
[Site "Chess.com"]
[Date "2020.12.01"]
[Round "11"]
[White "LuckSlayeer"]
[Black "DinaBelenkaya"]
[Result "1-0"]
[WhiteElo "2574"]
[BlackElo "2397"]
[TimeControl "180+1"]
[EndTime "12:04:56 PST"]
[Termination "LuckSlayeer won by resignation"]

1. g3 {[%clk 0:03:00.9]} 1... d5 {[%clk 0:02:58.4]} 2. Bg2 {[%clk 0:03:01.8]}
2... c6 {[%clk 0:02:56.2]} 3. Nf3 {[%clk 0:03:01]} 3... Bg4 {[%clk 0:02:55.6]}
4. O-O {[%clk 0:03:01.1]} 4... e6 {[%clk 0:02:55.8]} 5. d4 {[%clk 0:03:01.5]}
5... Nd7 {[%clk 0:02:56]} 6. Nbd2 {[%clk 0:03:02.1]} 6... Ngf6 {[%clk
0:02:56.2]} 7. Re1 {[%clk 0:03:02.8]} 7... Be7 {[%clk 0:02:54.7]} 8. e4 {[%clk
0:03:03.4]} 8... dxe4 {[%clk 0:02:55.2]} 9. Nxe4 {[%clk 0:03:04.3]} 9... Nxe4
{[%clk 0:02:55.9]} 10. Rxe4 {[%clk 0:03:05.1]} 10... Nf6 {[%clk 0:02:56.5]} 11.
Re1 {[%clk 0:03:05.8]} 11... O-O {[%clk 0:02:55.8]} 12. c3 {[%clk 0:03:06.4]}
12... a5 {[%clk 0:02:50.7]} 13. Qb3 {[%clk 0:03:04.7]} 13... Qc8 {[%clk
0:02:36.5]} 14. a4 {[%clk 0:03:01.1]} 14... Nd5 {[%clk 0:02:34.9]} 15. Ne5
{[%clk 0:02:59.8]} 15... Bh5 {[%clk 0:02:33.7]} 16. Nc4 {[%clk 0:02:53.6]} 16...
Qc7 {[%clk 0:02:06.6]} 17. Bd2 {[%clk 0:02:44.3]} 17... h6 {[%clk 0:01:54.4]}
18. Ne5 {[%clk 0:02:42.5]} 18... Bd6 {[%clk 0:01:40.8]} 19. f4 {[%clk
0:02:37.1]} 19... Bxe5 {[%clk 0:01:23.5]} 20. Rxe5 {[%clk 0:02:21.4]} 20... Bg6
{[%clk 0:01:22.6]} 21. Rae1 {[%clk 0:02:14.4]} 21... Rfd8 {[%clk 0:01:00.5]} 22.
h3 {[%clk 0:01:57.3]} 22... Rab8 {[%clk 0:00:56.7]} 23. c4 {[%clk 0:01:43]}
23... Nb4 {[%clk 0:00:54.8]} 24. Bxb4 {[%clk 0:01:36.4]} 24... axb4 {[%clk
0:00:55.7]} 25. d5 {[%clk 0:01:23.1]} 25... cxd5 {[%clk 0:00:54.3]} 26. cxd5
{[%clk 0:01:24]} 26... Qc5+ {[%clk 0:00:54.3]} 27. Kh2 {[%clk 0:01:21]} 27...
Bc2 {[%clk 0:00:53.9]} 28. Qf3 {[%clk 0:01:09.2]} 28... exd5 {[%clk 0:00:49.6]}
29. f5 {[%clk 0:00:55.2]} 29... Be4 {[%clk 0:00:43.8]} 30. Qxe4 {[%clk
0:00:50.8]} 30... dxe4 {[%clk 0:00:38.4]} 31. Rxc5 {[%clk 0:00:50.8]} 31... Rd2
{[%clk 0:00:38.7]} 32. Rxe4 {[%clk 0:00:41.4]} 32... Rxb2 {[%clk 0:00:38.7]} 33.
Rb5 {[%clk 0:00:41.8]} 33... Rd8 {[%clk 0:00:37.9]} 34. Rexb4 {[%clk 0:00:40.5]}
34... Ra2 {[%clk 0:00:38]} 35. Rb2 {[%clk 0:00:36.5]} 35... Rxa4 {[%clk
0:00:38.1]} 36. Rxb7 {[%clk 0:00:36.8]} 36... Rd5 {[%clk 0:00:37.6]} 37. Bxd5
{[%clk 0:00:36.4]} 1-0

[Event "*** Titled Tuesday Blitz"]
[Site "Chess.com"]
[Date "2020.12.01"]
[Round "11"]
[White "kinga2008"]
[Black "MasterKroket"]
[Result "1/2-1/2"]
[WhiteElo "2209"]
[BlackElo "2385"]
[TimeControl "180+1"]
[EndTime "12:04:57 PST"]
[Termination "Game drawn - insufficient material"]

1. e4 {[%clk 0:02:56.3]} 1... c5 {[%clk 0:03:00.1]} 2. Nf3 {[%clk 0:02:55.2]}
2... e6 {[%clk 0:03:00]} 3. c3 {[%clk 0:02:53.6]} 3... Nf6 {[%clk 0:03:00.3]} 4.
Bd3 {[%clk 0:02:41.6]} 4... Nc6 {[%clk 0:02:59.6]} 5. Bc2 {[%clk 0:02:39.8]}
5... d6 {[%clk 0:02:58.1]} 6. O-O {[%clk 0:02:37.9]} 6... Be7 {[%clk 0:02:58]}
7. d4 {[%clk 0:02:26.3]} 7... cxd4 {[%clk 0:02:57.3]} 8. cxd4 {[%clk 0:02:19.2]}
8... e5 {[%clk 0:02:57.2]} 9. dxe5 {[%clk 0:02:16.2]} 9... dxe5 {[%clk
0:02:56.2]} 10. Qxd8+ {[%clk 0:02:12.4]} 10... Bxd8 {[%clk 0:02:56.4]} 11. Nc3
{[%clk 0:02:09.6]} 11... O-O {[%clk 0:02:53.4]} 12. Bg5 {[%clk 0:02:06.3]} 12...
Be6 {[%clk 0:02:48.3]} 13. Rfd1 {[%clk 0:01:38.4]} 13... Bb6 {[%clk 0:02:35.9]}
14. Bxf6 {[%clk 0:01:35.2]} 14... gxf6 {[%clk 0:02:36.7]} 15. Nd5 {[%clk
0:01:33.7]} 15... Bxd5 {[%clk 0:02:37.1]} 16. exd5 {[%clk 0:01:30.7]} 16... Nd4
{[%clk 0:02:36.4]} 17. Nxd4 {[%clk 0:01:29.9]} 17... Bxd4 {[%clk 0:02:36.6]} 18.
Be4 {[%clk 0:01:29.3]} 18... Rac8 {[%clk 0:02:32.8]} 19. Rac1 {[%clk 0:01:24.8]}
19... Rfd8 {[%clk 0:02:26.8]} 20. b3 {[%clk 0:01:19.7]} 20... h6 {[%clk
0:02:18.7]} 21. Kf1 {[%clk 0:01:15.6]} 21... Kf8 {[%clk 0:02:13.5]} 22. Ke2
{[%clk 0:01:10.4]} 22... Ke7 {[%clk 0:02:13.9]} 23. f4 {[%clk 0:01:03.8]} 23...
b5 {[%clk 0:02:10.6]} 24. Kd3 {[%clk 0:00:48.2]} 24... b4 {[%clk 0:02:03]} 25.
Bf3 {[%clk 0:00:34.4]} 25... Bc3 {[%clk 0:01:56.1]} 26. Ke4 {[%clk 0:00:29.4]}
26... Kd6 {[%clk 0:01:54.7]} 27. Rd3 {[%clk 0:00:17.7]} 27... a5 {[%clk
0:01:54.6]} 28. a3 {[%clk 0:00:05.5]} 28... Bd4 {[%clk 0:01:41.4]} 29. Rxc8
{[%clk 0:00:02.6]} 29... Rxc8 {[%clk 0:01:42.3]} 30. axb4 {[%clk 0:00:03.1]}
30... axb4 {[%clk 0:01:40.9]} 31. Kf5 {[%clk 0:00:03.7]} 31... Rc3 {[%clk
0:01:34.7]} 32. Rxc3 {[%clk 0:00:03.7]} 32... bxc3 {[%clk 0:01:34.7]} 33. Be4
{[%clk 0:00:03.4]} 33... Kc5 {[%clk 0:01:22.8]} 34. Kxf6 {[%clk 0:00:02.9]}
34... exf4+ {[%clk 0:01:22.4]} 35. Kxf7 {[%clk 0:00:03]} 35... Kb4 {[%clk
0:01:20.8]} 36. d6 {[%clk 0:00:03.2]} 36... Kxb3 {[%clk 0:01:20.6]} 37. d7
{[%clk 0:00:03.7]} 37... Bb6 {[%clk 0:01:20]} 38. Ke7 {[%clk 0:00:04]} 38... c2
{[%clk 0:01:20.1]} 39. Bxc2+ {[%clk 0:00:04.5]} 39... Kxc2 {[%clk 0:01:21]} 40.
d8=Q {[%clk 0:00:05.2]} 40... Bxd8+ {[%clk 0:01:21.3]} 41. Kxd8 {[%clk
0:00:05.8]} 41... Kd2 {[%clk 0:01:22.2]} 42. Ke7 {[%clk 0:00:06.5]} 42... Ke2
{[%clk 0:01:21.7]} 43. Kf6 {[%clk 0:00:06.5]} 43... Kf2 {[%clk 0:01:22.3]} 44.
Kf5 {[%clk 0:00:06.5]} 44... Kxg2 {[%clk 0:01:22]} 45. Kxf4 {[%clk 0:00:05.2]}
45... Kxh2 {[%clk 0:01:20.6]} 46. Kg4 {[%clk 0:00:05.8]} 46... h5+ {[%clk
0:01:21]} 47. Kxh5 {[%clk 0:00:05.3]} 1/2-1/2

[Event "*** Titled Tuesday Blitz"]
[Site "Chess.com"]
[Date "2020.12.01"]
[Round "11"]
[White "mr65"]
[Black "Ariadna_Atreides"]
[Result "0-1"]
[WhiteElo "2167"]
[BlackElo "2074"]
[TimeControl "180+1"]
[EndTime "12:04:57 PST"]
[Termination "Ariadna_Atreides won on time"]

1. e4 {[%clk 0:01:15.7]} 1... c5 {[%clk 0:02:57.4]} 2. d4 {[%clk 0:01:14.6]}
2... cxd4 {[%clk 0:02:56.2]} 3. c3 {[%clk 0:01:14.8]} 3... d3 {[%clk 0:02:56.7]}
4. c4 {[%clk 0:01:14.2]} 4... Nc6 {[%clk 0:02:56]} 5. Nc3 {[%clk 0:01:14.8]}
5... d6 {[%clk 0:02:54.4]} 6. Bxd3 {[%clk 0:01:14.6]} 6... g6 {[%clk 0:02:54]}
7. Nge2 {[%clk 0:01:14.5]} 7... Bg7 {[%clk 0:02:53.2]} 8. b3 {[%clk 0:01:14.7]}
8... Nf6 {[%clk 0:02:52.3]} 9. Bb2 {[%clk 0:01:14.8]} 9... O-O {[%clk
0:02:51.4]} 10. O-O {[%clk 0:01:14.3]} 10... a6 {[%clk 0:02:49.3]} 11. Qd2
{[%clk 0:01:09.6]} 11... Rb8 {[%clk 0:02:46.1]} 12. Nd5 {[%clk 0:01:08]} 12...
b5 {[%clk 0:02:40.8]} 13. Nxf6+ {[%clk 0:01:05.6]} 13... exf6 {[%clk 0:02:38.2]}
14. Rad1 {[%clk 0:01:02]} 14... Qc7 {[%clk 0:02:36.5]} 15. Nf4 {[%clk
0:00:56.1]} 15... Be6 {[%clk 0:02:34.4]} 16. Nd5 {[%clk 0:00:55.3]} 16... Bxd5
{[%clk 0:02:33.4]} 17. exd5 {[%clk 0:00:55.1]} 17... Ne5 {[%clk 0:02:33]} 18. f4
{[%clk 0:00:54.6]} 18... Nxd3 {[%clk 0:02:31.8]} 19. Qxd3 {[%clk 0:00:54.4]}
19... bxc4 {[%clk 0:02:31.9]} 20. Qd4 {[%clk 0:00:41.1]} 20... cxb3 {[%clk
0:02:24]} 21. a3 {[%clk 0:00:39.9]} 21... Qb6 {[%clk 0:02:23.2]} 22. f5 {[%clk
0:00:28.5]} 22... Rfc8 {[%clk 0:02:15.3]} 23. Rf2 {[%clk 0:00:20.8]} 23... Rc2
{[%clk 0:02:05]} 24. Qxb6 {[%clk 0:00:11.7]} 24... Rxb6 {[%clk 0:02:03]} 25. Re1
{[%clk 0:00:09.3]} 25... Rb8 {[%clk 0:01:53.2]} 26. Rfe2 {[%clk 0:00:07.5]}
26... Bf8 {[%clk 0:01:38.2]} 27. Kf1 {[%clk 0:00:06.5]} 27... Rxe2 {[%clk
0:01:26.6]} 28. Rxe2 {[%clk 0:00:05.7]} 28... Bg7 {[%clk 0:01:21.3]} 29. g4
{[%clk 0:00:04.5]} 29... Kf8 {[%clk 0:01:18.9]} 30. h3 {[%clk 0:00:03.6]} 30...
Re8 {[%clk 0:01:15.5]} 31. Rxe8+ {[%clk 0:00:03.1]} 31... Kxe8 {[%clk
0:01:15.1]} 32. Ke2 {[%clk 0:00:03.2]} 32... gxf5 {[%clk 0:01:06.9]} 33. Kd3
{[%clk 0:00:04.1]} 33... fxg4 {[%clk 0:01:05.8]} 34. hxg4 {[%clk 0:00:03.8]}
34... Kf8 {[%clk 0:01:02.2]} 35. Kc4 {[%clk 0:00:03.3]} 35... f5 {[%clk
0:01:02.2]} 36. gxf5 {[%clk 0:00:02.3]} 36... Bxb2 {[%clk 0:01:01.2]} 0-1

[Event "*** Titled Tuesday Blitz"]
[Site "Chess.com"]
[Date "2020.12.01"]
[Round "11"]
[White "Nemsko"]
[Black "ARTHURMOTIVATOR"]
[Result "1-0"]
[WhiteElo "2373"]
[BlackElo "2230"]
[TimeControl "180+1"]
[EndTime "12:04:58 PST"]
[Termination "Nemsko won by checkmate"]

1. e4 {[%clk 0:03:00.9]} 1... c6 {[%clk 0:02:54.1]} 2. d4 {[%clk 0:03:00.1]}
2... d5 {[%clk 0:02:53.7]} 3. e5 {[%clk 0:03:01]} 3... c5 {[%clk 0:02:51.3]} 4.
dxc5 {[%clk 0:03:00.8]} 4... e6 {[%clk 0:02:48.3]} 5. Be3 {[%clk 0:02:58.8]}
5... Nh6 {[%clk 0:02:43.4]} 6. Nf3 {[%clk 0:02:55.8]} 6... Nf5 {[%clk
0:02:36.8]} 7. c3 {[%clk 0:02:43.2]} 7... Nxe3 {[%clk 0:02:31.7]} 8. fxe3 {[%clk
0:02:44.1]} 8... Bxc5 {[%clk 0:02:32]} 9. Nd4 {[%clk 0:02:39.2]} 9... O-O {[%clk
0:02:22.4]} 10. Bd3 {[%clk 0:02:31]} 10... Nc6 {[%clk 0:02:18]} 11. O-O {[%clk
0:02:18.9]} 11... Qg5 {[%clk 0:02:08.6]} 12. Kh1 {[%clk 0:02:10.9]} 12... Nxe5
{[%clk 0:02:00.2]} 13. b4 {[%clk 0:01:59.7]} 13... Bd6 {[%clk 0:01:49.1]} 14.
Nf3 {[%clk 0:01:55.3]} 14... Qxe3 {[%clk 0:01:24.7]} 15. Nxe5 {[%clk 0:01:48.2]}
15... Qxe5 {[%clk 0:01:16]} 16. g3 {[%clk 0:01:39.2]} 16... f5 {[%clk
0:01:03.4]} 17. Qc2 {[%clk 0:01:30.1]} 17... Bd7 {[%clk 0:00:59]} 18. Nd2 {[%clk
0:01:29.8]} 18... Rac8 {[%clk 0:00:56.6]} 19. Rac1 {[%clk 0:01:26.3]} 19... Bxb4
{[%clk 0:00:46.8]} 20. Nf3 {[%clk 0:01:22.9]} 20... Qxc3 {[%clk 0:00:34.9]} 21.
Qb1 {[%clk 0:01:22]} 21... Qa3 {[%clk 0:00:22.7]} 22. Ne5 {[%clk 0:01:20.7]}
22... Rxc1 {[%clk 0:00:14.6]} 23. Rxc1 {[%clk 0:01:21.6]} 23... Bc6 {[%clk
0:00:14.7]} 24. Nxc6 {[%clk 0:01:15.5]} 24... bxc6 {[%clk 0:00:15.6]} 25. Rxc6
{[%clk 0:01:16]} 25... e5 {[%clk 0:00:15.5]} 26. Kg2 {[%clk 0:01:08.6]} 26... e4
{[%clk 0:00:15.6]} 27. Be2 {[%clk 0:01:07.3]} 27... f4 {[%clk 0:00:15.4]} 28.
gxf4 {[%clk 0:01:05.5]} 28... Qe3 {[%clk 0:00:15.4]} 29. Qf1 {[%clk 0:01:03.7]}
29... Rxf4 {[%clk 0:00:14.2]} 30. Rc8+ {[%clk 0:01:03.7]} 30... Bf8 {[%clk
0:00:13.4]} 31. Qe1 {[%clk 0:01:00.2]} 31... Rf5 {[%clk 0:00:12.4]} 32. Kh1
{[%clk 0:00:57.7]} 32... Rf2 {[%clk 0:00:11.5]} 33. Qd1 {[%clk 0:00:50.5]} 33...
Qxe2 {[%clk 0:00:08.8]} 34. Qxd5+ {[%clk 0:00:49.6]} 34... Rf7 {[%clk
0:00:08.7]} 35. Rxf8+ {[%clk 0:00:48]} 35... Kxf8 {[%clk 0:00:06.9]} 36. Qd8#
{[%clk 0:00:48.7]} 1-0

[Event "*** Titled Tuesday Blitz"]
[Site "Chess.com"]
[Date "2020.12.01"]
[Round "11"]
[White "Gulkov_Igor"]
[Black "KononenkoD"]
[Result "1/2-1/2"]
[WhiteElo "2502"]
[BlackElo "2391"]
[TimeControl "180+1"]
[EndTime "12:05:01 PST"]
[Termination "Game drawn by repetition"]

1. Nf3 {[%clk 0:03:00.9]} 1... c5 {[%clk 0:02:56.8]} 2. c4 {[%clk 0:03:00.5]}
2... Nc6 {[%clk 0:02:57.3]} 3. d4 {[%clk 0:03:00.6]} 3... cxd4 {[%clk
0:02:56.5]} 4. Nxd4 {[%clk 0:03:00.7]} 4... Nf6 {[%clk 0:02:57.2]} 5. Nc3 {[%clk
0:03:00.3]} 5... d5 {[%clk 0:02:57.8]} 6. cxd5 {[%clk 0:02:59.1]} 6... Nxd5
{[%clk 0:02:58.7]} 7. Nxc6 {[%clk 0:02:59.1]} 7... bxc6 {[%clk 0:02:58.4]} 8.
Bd2 {[%clk 0:02:59.6]} 8... e5 {[%clk 0:02:49.9]} 9. e4 {[%clk 0:02:58.5]} 9...
Nb6 {[%clk 0:02:43.5]} 10. Be3 {[%clk 0:02:52.4]} 10... Be6 {[%clk 0:02:32.6]}
11. Be2 {[%clk 0:02:50.6]} 11... Be7 {[%clk 0:02:27.3]} 12. O-O {[%clk
0:02:49.1]} 12... O-O {[%clk 0:02:27.9]} 13. Qc2 {[%clk 0:02:45.5]} 13... Qc8
{[%clk 0:02:15.8]} 14. Na4 {[%clk 0:02:37.8]} 14... Nxa4 {[%clk 0:02:11.8]} 15.
Qxa4 {[%clk 0:02:37.1]} 15... Qb7 {[%clk 0:02:12.4]} 16. b3 {[%clk 0:02:34.6]}
16... Rfd8 {[%clk 0:01:59]} 17. Rac1 {[%clk 0:02:33.6]} 17... Bd7 {[%clk
0:01:48.6]} 18. Bc5 {[%clk 0:02:14]} 18... Bxc5 {[%clk 0:01:41.3]} 19. Rxc5
{[%clk 0:02:13.7]} 19... Be8 {[%clk 0:01:38.9]} 20. Rxe5 {[%clk 0:02:08.2]}
20... Rd6 {[%clk 0:01:25.3]} 21. Bc4 {[%clk 0:02:03.6]} 21... Rad8 {[%clk
0:01:22.1]} 22. Ra5 {[%clk 0:01:59.4]} 22... c5 {[%clk 0:01:11.2]} 23. Qa3
{[%clk 0:01:58.1]} 23... Qxe4 {[%clk 0:01:06.9]} 24. Ra6 {[%clk 0:01:51.9]}
24... Bc6 {[%clk 0:01:03.4]} 25. Rxc6 {[%clk 0:01:31.3]} 25... Rxc6 {[%clk
0:00:55.9]} 26. Qxa7 {[%clk 0:01:31]} 26... Qf5 {[%clk 0:00:48.3]} 27. g3 {[%clk
0:01:23.5]} 27... h5 {[%clk 0:00:46.8]} 28. Qe7 {[%clk 0:01:23.1]} 28... Rcd6
{[%clk 0:00:39.3]} 29. a4 {[%clk 0:01:21.6]} 29... Qf6 {[%clk 0:00:37.7]} 30.
Qxf6 {[%clk 0:01:20.4]} 30... Rxf6 {[%clk 0:00:38.6]} 31. h4 {[%clk 0:01:19.9]}
31... Rd2 {[%clk 0:00:36.9]} 32. a5 {[%clk 0:01:19]} 32... Ra2 {[%clk
0:00:35.4]} 33. a6 {[%clk 0:01:19]} 33... Kf8 {[%clk 0:00:26.3]} 34. Kg2 {[%clk
0:01:18.5]} 34... Ke7 {[%clk 0:00:24.3]} 35. Kg1 {[%clk 0:01:14.1]} 35... Kd8
{[%clk 0:00:24.2]} 36. Kg2 {[%clk 0:01:04]} 36... Kc7 {[%clk 0:00:24.4]} 37. Kg1
{[%clk 0:01:02.8]} 37... Kb6 {[%clk 0:00:24.9]} 38. Kg2 {[%clk 0:01:02.7]} 38...
Ka7 {[%clk 0:00:25.2]} 39. Kg1 {[%clk 0:01:02.4]} 39... Rf5 {[%clk 0:00:23.3]}
40. Kg2 {[%clk 0:01:02.2]} 40... g6 {[%clk 0:00:21.6]} 41. Bd3 {[%clk 0:01:01]}
41... Rf6 {[%clk 0:00:21]} 42. Bc4 {[%clk 0:01:01.2]} 42... Rf5 {[%clk
0:00:20.6]} 43. Bd3 {[%clk 0:01:01.4]} 43... Rf6 {[%clk 0:00:20.2]} 44. Bc4
{[%clk 0:01:01.6]} 44... Rf5 {[%clk 0:00:20.3]} 1/2-1/2

[Event "*** Titled Tuesday Blitz"]
[Site "Chess.com"]
[Date "2020.12.01"]
[Round "11"]
[White "VladimirBugayev"]
[Black "IngOscarArdila"]
[Result "0-1"]
[WhiteElo "2270"]
[BlackElo "2207"]
[TimeControl "180+1"]
[EndTime "12:05:01 PST"]
[Termination "IngOscarArdila won on time"]

1. e4 {[%clk 0:03:00.9]} 1... e5 {[%clk 0:02:59.5]} 2. Nf3 {[%clk 0:02:59.9]}
2... Nc6 {[%clk 0:02:59.2]} 3. d4 {[%clk 0:03:00.4]} 3... exd4 {[%clk 0:02:59]}
4. Nxd4 {[%clk 0:03:01]} 4... Nf6 {[%clk 0:02:57.5]} 5. Nxc6 {[%clk 0:03:01.2]}
5... bxc6 {[%clk 0:02:57.3]} 6. e5 {[%clk 0:03:01.8]} 6... Nd5 {[%clk
0:02:56.1]} 7. c4 {[%clk 0:02:59.1]} 7... Ne7 {[%clk 0:02:53.1]} 8. b3 {[%clk
0:02:52.6]} 8... Ng6 {[%clk 0:02:52.7]} 9. Bb2 {[%clk 0:02:52.9]} 9... Bb4+
{[%clk 0:02:52.3]} 10. Nd2 {[%clk 0:02:43.6]} 10... Qe7 {[%clk 0:02:50.2]} 11.
a3 {[%clk 0:02:39.5]} 11... Nxe5 {[%clk 0:02:38.4]} 12. Bxe5 {[%clk 0:02:30.3]}
12... Qxe5+ {[%clk 0:02:37.9]} 13. Be2 {[%clk 0:02:31.2]} 13... Bc3 {[%clk
0:02:32]} 14. Rb1 {[%clk 0:02:21]} 14... O-O {[%clk 0:02:29.9]} 15. O-O {[%clk
0:02:20.9]} 15... d5 {[%clk 0:02:29.6]} 16. Nf3 {[%clk 0:02:06.7]} 16... Qf6
{[%clk 0:02:29.6]} 17. cxd5 {[%clk 0:02:04.2]} 17... Bf5 {[%clk 0:02:28.3]} 18.
Rc1 {[%clk 0:02:01.7]} 18... Bb2 {[%clk 0:02:27.3]} 19. Rxc6 {[%clk 0:01:59.9]}
19... Qe7 {[%clk 0:02:24.1]} 20. a4 {[%clk 0:01:39.9]} 20... Rad8 {[%clk
0:02:20.5]} 21. Bc4 {[%clk 0:01:34.9]} 21... Bc3 {[%clk 0:02:13.7]} 22. Nd4
{[%clk 0:01:22.3]} 22... Bc8 {[%clk 0:02:12.5]} 23. Nb5 {[%clk 0:01:20.2]} 23...
Ba5 {[%clk 0:02:12.3]} 24. b4 {[%clk 0:01:03.2]} 24... Qxb4 {[%clk 0:02:11.5]}
25. Qb3 {[%clk 0:00:46.6]} 25... Qxb3 {[%clk 0:02:05.7]} 26. Bxb3 {[%clk
0:00:45.8]} 26... Bb7 {[%clk 0:02:06.3]} 27. Rc2 {[%clk 0:00:33.9]} 27... Bxd5
{[%clk 0:02:04.7]} 28. Bxd5 {[%clk 0:00:33.3]} 28... Rxd5 {[%clk 0:02:04.7]} 29.
Nxc7 {[%clk 0:00:33.8]} 29... Rd4 {[%clk 0:01:43.8]} 30. h3 {[%clk 0:00:17.7]}
30... Rxa4 {[%clk 0:01:40.5]} 31. Nd5 {[%clk 0:00:15.8]} 31... h6 {[%clk
0:01:36.3]} 32. Rb1 {[%clk 0:00:14.3]} 32... Rd8 {[%clk 0:01:30.2]} 33. Ne7+
{[%clk 0:00:12.8]} 33... Kh7 {[%clk 0:01:30.2]} 34. Rb7 {[%clk 0:00:11.5]} 34...
Ra1+ {[%clk 0:01:26.7]} 35. Kh2 {[%clk 0:00:11.4]} 35... Bb6 {[%clk 0:01:27.2]}
36. Nf5 {[%clk 0:00:08.6]} 36... Kg6 {[%clk 0:01:26.5]} 37. Nh4+ {[%clk
0:00:07.7]} 37... Kh5 {[%clk 0:01:25.8]} 38. Kg3 {[%clk 0:00:05.8]} 38... Rd3+
{[%clk 0:01:24.5]} 39. Nf3 {[%clk 0:00:05.4]} 39... Kg6 {[%clk 0:01:20.3]} 40.
Rc4 {[%clk 0:00:04.4]} 40... h5 {[%clk 0:01:17.8]} 41. Kh2 {[%clk 0:00:03.6]}
41... Rxf3 {[%clk 0:01:17.2]} 42. gxf3 {[%clk 0:00:03.1]} 42... Ra2 {[%clk
0:01:16.1]} 43. Kg3 {[%clk 0:00:02.1]} 43... Bxf2+ {[%clk 0:01:13.9]} 44. Kf4
{[%clk 0:00:02.1]} 44... Bb6 {[%clk 0:01:13.6]} 45. Rc6+ {[%clk 0:00:01.7]}
45... f6 {[%clk 0:01:12.7]} 0-1